fUSD/lending_fUSD_20241222
["ID","MTS","AMOUNT","RATE_DAILY","PERIOD"]
[346329429,1734895838826,-616.19,0.00019178,2]
[346329431,1734895838835,-602.34459364,0.00019178,2]
[346329433,1734895838845,-500.0,0.00019178,2]
[346329435,1734895838854,-500.0,0.00019178,2]
[346329437,1734895838863,-500.0,0.00019178,2]
[346329439,1734895838873,-500.0,0.00019178,2]
[346329441,1734895838882,-500.0,0.00019178,2]
[346329443,1734895838891,-500.0,0.00019178,2]
[346329445,1734895838901,-500.0,0.00019178,2]
[346329447,1734895838910,-218.94240124,0.00019178,2]
[346329449,1734895838920,-500.0,0.00019178,2]
[346329451,1734895838929,-500.0,0.00019178,2]
[346329453,1734895838938,-500.0,0.00019178,2]
[346329455,1734895838948,-500.0,0.00019178,2]
[346329457,1734895838957,-500.0,0.00019178,2]
[346329459,1734895838967,-500.0,0.00019178,2]
[346329461,1734895838976,-500.0,0.00019178,2]
[346329463,1734895838986,-500.0,0.00019178,2]
[346329465,1734895838995,-355.94,0.00019178,2]
[346329467,1734895839005,-231.63,0.00019178,2]
[346329469,1734895839015,-500.0,0.00019178,2]
[346329471,1734895839025,-500.0,0.00019178,2]
[346329473,1734895839034,-500.0,0.00019178,2]
[346329475,1734895839044,-500.0,0.00019178,2]
[346329477,1734895839054,-500.0,0.00019178,2]
[346329479,1734895839063,-500.0,0.00019178,2]
[346329480,1734895839073,-500.0,0.00019178,2]
[346329482,1734895839083,-500.0,0.00019178,2]
[346329484,1734895839092,-500.0,0.00019178,2]
[346329486,1734895839102,-500.0,0.00019178,2]
[346329488,1734895839111,-500.0,0.00019178,2]
[346329490,1734895839120,-500.0,0.00019178,2]
[346329492,1734895839130,-500.0,0.00019178,2]
[346329494,1734895839139,-500.0,0.00019178,2]
[346329496,1734895839149,-500.0,0.00019178,2]
[346329498,1734895839158,-500.0,0.00019178,2]
[346329500,1734895839168,-500.0,0.00019178,2]
[346329502,1734895839177,-500.0,0.00019178,2]
[346329504,1734895839187,-500.0,0.00019178,2]
[346329506,1734895839196,-500.0,0.00019178,2]
[346329508,1734895839206,-500.0,0.00019178,2]
[346329510,1734895839216,-500.0,0.00019178,2]
[346329512,1734895839225,-500.0,0.00019178,2]
[346329514,1734895839235,-500.0,0.00019178,2]
[346329517,1734895839244,-500.0,0.00019178,2]
[346329519,1734895839254,-517.09,0.00019178,2]
[346329521,1734895839263,-500.0,0.00019178,2]
[346329523,1734895839273,-500.0,0.00019178,2]
[346329525,1734895839282,-500.0,0.00019178,2]
[346329527,1734895839291,-500.0,0.00019178,2]
[346329529,1734895839300,-500.0,0.00019178,2]
[346329532,1734895839310,-500.0,0.00019178,2]
[346329535,1734895839319,-500.0,0.00019178,2]
[346329537,1734895839329,-500.0,0.00019178,2]
[346329539,1734895839339,-500.0,0.00019178,2]
[346329541,1734895839348,-453.32939624,0.00019178,2]
[346329543,1734895839357,-2331.33,0.00019178,2]
[346329545,1734895839366,-500.0,0.00019178,2]
[346329547,1734895839375,-500.0,0.00019178,2]
[346329549,1734895839385,-500.0,0.00019178,2]
[346329551,1734895839394,-500.0,0.00019178,2]
[346329553,1734895839404,-574.13,0.00019178,2]
[346329555,1734895839413,-592.13,0.00019178,2]
[346329557,1734895839423,-500.0,0.00019178,2]
[346329559,1734895839432,-500.0,0.00019178,2]
[346329561,1734895839442,-500.0,0.00019178,2]
[346329562,1734895839453,-500.0,0.00019178,2]
[346329565,1734895839463,-500.0,0.00019178,2]
[346329567,1734895839474,-500.0,0.00019178,2]
[346329569,1734895839483,-569.62,0.00019178,2]
[346329571,1734895839493,-500.0,0.00019178,2]
[346329573,1734895839503,-500.0,0.00019178,2]
[346329575,1734895839512,-500.0,0.00019178,2]
[346329577,1734895839521,-500.0,0.00019178,2]
[346329579,1734895839531,-500.0,0.00019178,2]
[346329581,1734895839540,-500.0,0.00019178,2]
[346329583,1734895839550,-500.0,0.00019178,2]
[346329585,1734895839560,-500.0,0.00019178,2]
[346329587,1734895839569,-544.71,0.00019178,2]
[346329589,1734895839579,-500.0,0.00019178,2]
[346329591,1734895839588,-500.0,0.00019178,2]
[346329593,1734895839598,-500.0,0.00019178,2]
[346329595,1734895839607,-500.0,0.00019178,2]
[346329597,1734895839617,-500.0,0.00019178,2]
[346329599,1734895839626,-500.0,0.00019178,2]
[346329601,1734895839635,-161.53766112,0.00019178,2]
[346329603,1734895839644,-500.0,0.00019178,2]
[346329605,1734895839654,-500.0,0.00019178,2]
[346329607,1734895839664,-584.0,0.00019178,2]
[346329609,1734895839674,-500.0,0.00019178,2]
[346329611,1734895839683,-500.0,0.00019178,2]
[346329613,1734895839693,-500.0,0.00019178,2]
[346329615,1734895839703,-540.3,0.00019178,2]
[346329617,1734895839713,-500.0,0.00019178,2]
[346329619,1734895839724,-500.0,0.00019178,2]
[346329621,1734895839733,-500.0,0.00019178,2]
[346329623,1734895839742,-500.0,0.00019178,2]
[346329625,1734895839752,-500.0,0.00019178,2]
[346329627,1734895839761,-500.0,0.00019178,2]
[346329629,1734895839770,-500.0,0.00019178,2]
[346329631,1734895839780,-500.0,0.00019178,2]
[346329633,1734895839790,-500.0,0.00019178,2]
[346329635,1734895839801,-500.0,0.00019178,2]
[346329637,1734895839810,-582.49,0.00019178,2]
[346329639,1734895839820,-500.0,0.00019178,2]
[346329641,1734895839829,-500.0,0.00019178,2]
[346329643,1734895839838,-500.0,0.00019178,2]
[346329645,1734895839847,-500.0,0.00019178,2]
[346329647,1734895839857,-500.0,0.00019178,2]
[346329649,1734895839866,-764.07,0.00019178,2]
[346329651,1734895839875,-500.0,0.00019178,2]
[346329653,1734895839885,-500.0,0.00019178,2]
[346329655,1734895839894,-500.0,0.00019178,2]
[346329657,1734895839903,-500.0,0.00019178,2]
[346329659,1734895839913,-500.0,0.00019178,2]
[346329661,1734895839922,-500.0,0.00019178,2]
[346329663,1734895839932,-500.0,0.00019178,2]
[346329665,1734895839941,-500.0,0.00019178,2]
[346329667,1734895839951,-500.0,0.00019178,2]
[346329669,1734895839961,-500.0,0.00019178,2]
[346329671,1734895839970,-500.0,0.00019178,2]
[346329673,1734895839980,-500.0,0.00019178,2]
[346329675,1734895839990,-500.0,0.00019178,2]
[346329677,1734895839999,-500.0,0.00019178,2]
[346329679,1734895840009,-500.0,0.00019178,2]
[346329681,1734895840019,-500.0,0.00019178,2]
[346329683,1734895840028,-357.71731599,0.00019178,2]
[346329685,1734895840037,-500.0,0.00019178,2]
[346329687,1734895840047,-500.0,0.00019178,2]
[346329688,1734895840056,-500.0,0.00019178,2]
[346329691,1734895840066,-500.0,0.00019178,2]
[346329693,1734895840075,-500.0,0.00019178,2]
[346329695,1734895840085,-500.0,0.00019178,2]
[346329697,1734895840094,-500.0,0.00019178,2]
[346329698,1734895840103,-500.0,0.00019178,2]
[346329700,1734895840113,-620.24,0.00019178,2]
[346329702,1734895840122,-500.0,0.00019178,2]
[346329703,1734895840131,-500.0,0.00019178,2]
[346329704,1734895840140,-500.0,0.00019178,2]
[346329705,1734895840151,-500.0,0.00019178,2]
[346329706,1734895840160,-500.0,0.00019178,2]
[346329707,1734895840169,-500.0,0.00019178,2]
[346329708,1734895840179,-500.0,0.00019178,2]
[346329709,1734895840188,-500.0,0.00019178,2]
[346329710,1734895840198,-500.0,0.00019178,2]
[346329711,1734895840210,-500.0,0.00019178,2]
[346329712,1734895840219,-500.0,0.00019178,2]
[346329713,1734895840228,-500.0,0.00019178,2]
[346329714,1734895840238,-500.0,0.00019178,2]
[346329715,1734895840247,-500.0,0.00019178,2]
[346329716,1734895840257,-500.0,0.00019178,2]
[346329717,1734895840266,-500.0,0.00019178,2]
[346329718,1734895840276,-500.0,0.00019178,2]
[346329719,1734895840285,-5102.04,0.00019178,2]
[346329720,1734895840295,-500.0,0.00019178,2]
[346329721,1734895840304,-500.0,0.00019178,2]
[346329722,1734895840313,-500.0,0.00019178,2]
[346329723,1734895840323,-1388.02,0.00019178,2]
[346329724,1734895840332,-500.0,0.00019178,2]
[346329725,1734895840341,-500.0,0.00019178,2]
[346329726,1734895840351,-500.0,0.00019178,2]
[346329728,1734895840360,-500.0,0.00019178,2]
[346329730,1734895840370,-639.32146749,0.00019178,2]
[346329732,1734895840379,-500.0,0.00019178,2]
[346329734,1734895840388,-500.0,0.00019178,2]
[346329736,1734895840398,-2234.43,0.00019178,2]
[346329738,1734895840407,-500.0,0.00019178,2]
[346329740,1734895840417,-500.0,0.00019178,2]
[346329741,1734895840427,-1504.78,0.00019178,2]
[346329742,1734895840437,-1278.14,0.00019178,2]
[346329743,1734895840454,-632.94,0.00019178,2]
[346329744,1734895840464,-590.92,0.00019178,2]
[346329745,1734895840474,-500.0,0.00019178,2]
[346329746,1734895840484,-500.0,0.00019178,2]
[346329747,1734895840495,-500.0,0.00019178,2]
[346329748,1734895840504,-500.0,0.00019178,2]
[346329749,1734895840514,-500.0,0.00019178,2]
[346329750,1734895840524,-500.0,0.00019178,2]
[346329751,1734895840534,-500.0,0.00019178,2]
[346329752,1734895840543,-312.51784375,0.00019178,2]
[346329753,1734895840553,-500.0,0.00019178,2]
[346329754,1734895840563,-945.98,0.00019178,2]
[346329755,1734895840572,-500.0,0.00019178,2]
[346329756,1734895840582,-1141.76,0.00019178,2]
[346329757,1734895840592,-500.0,0.00019178,2]
[346329758,1734895840602,-572.76,0.00019178,2]
[346329759,1734895840612,-500.0,0.00019178,2]
[346329760,1734895840622,-500.0,0.00019178,2]
[346329761,1734895840631,-500.0,0.00019178,2]
[346329763,1734895840641,-2568.77,0.00019178,2]
[346329765,1734895840649,-500.0,0.00019178,2]
[346329767,1734895840659,-12893.54,0.00019178,2]
[346329768,1734895840668,-500.0,0.00019178,2]
[346329769,1734895840677,-500.0,0.00019178,2]
[346329770,1734895840729,-774.35,0.00019178,2]
[346329771,1734895840741,-500.0,0.00019178,2]
[346329772,1734895840751,-500.0,0.00019178,2]
[346329773,1734895840760,-500.0,0.00019178,2]
[346329774,1734895840769,-500.0,0.00019178,2]
[346329775,1734895840779,-590.8,0.00019178,2]
[346329776,1734895840788,-500.0,0.00019178,2]
[346329777,1734895840798,-5286.66,0.00019178,2]
[346329778,1734895840807,-500.0,0.00019178,2]
[346329779,1734895840817,-500.0,0.00019178,2]
[346329780,1734895840826,-500.0,0.00019178,2]
[346329781,1734895840835,-500.0,0.00019178,2]
[346329782,1734895840845,-500.0,0.00019178,2]
[346329783,1734895840855,-500.0,0.00019178,2]
[346329784,1734895840863,-507.15,0.00019178,2]
[346329785,1734895840873,-500.0,0.00019178,2]
[346329786,1734895840883,-500.0,0.00019178,2]
[346329787,1734895840892,-500.0,0.00019178,2]
[346329788,1734895840901,-500.0,0.00019178,2]
[346329790,1734895840910,-500.0,0.00019178,2]
[346329792,1734895840919,-1985.36,0.00019178,2]
[346329794,1734895840928,-500.0,0.00019178,2]
[346329796,1734895840937,-500.0,0.00019178,2]
[346329797,1734895840947,-1914.15,0.00019178,2]
[346329798,1734895840956,-500.0,0.00019178,2]
[346329799,1734895840965,-500.0,0.00019178,2]
[346329800,1734895840974,-1487.57,0.00019178,2]
[346329801,1734895840983,-500.0,0.00019178,2]
[346329802,1734895840992,-500.0,0.00019178,2]
[346329803,1734895841001,-500.0,0.00019178,2]
[346329804,1734895841010,-1190.15,0.00019178,2]
[346329805,1734895841019,-1000.0,0.00019178,2]
[346329806,1734895841028,-860.5,0.00019178,2]
[346329807,1734895841038,-500.0,0.00019178,2]
[346329808,1734895841047,-1045.66,0.00019178,2]
[346329809,1734895841057,-500.0,0.00019178,2]
[346329810,1734895841066,-626.03,0.00019178,2]
[346329811,1734895841076,-2775.89,0.00019178,2]
[346329812,1734895841085,-500.0,0.00019178,2]
[346329813,1734895841094,-776.45,0.00019178,2]
[346329814,1734895841103,-500.0,0.00019178,2]
[346329815,1734895841112,-667.66,0.00019178,2]
[346329816,1734895841121,-500.0,0.00019178,2]
[346329817,1734895841131,-500.0,0.00019178,2]
[346329818,1734895841140,-500.0,0.00019178,2]
[346329819,1734895841150,-500.0,0.00019178,2]
[346329820,1734895841159,-500.0,0.00019178,2]
[346329821,1734895841168,-644.46,0.00019178,2]
[346329822,1734895841178,-500.0,0.00019178,2]
[346329824,1734895841187,-500.0,0.00019178,2]
[346329825,1734895841197,-2065.12,0.00019178,2]
[346329826,1734895841206,-500.0,0.00019178,2]
[346329827,1734895841215,-1712.59,0.00019178,2]
[346329828,1734895841225,-500.0,0.00019178,2]
[346329829,1734895841234,-500.0,0.00019178,2]
[346329830,1734895841243,-500.0,0.00019178,2]
[346329831,1734895841252,-559.07,0.00019178,2]
[346329832,1734895841261,-1409.42,0.00019178,2]
[346329833,1734895841270,-16380.15,0.00019178,2]
[346329834,1734895841279,-500.0,0.00019178,2]
[346329835,1734895841288,-500.0,0.00019178,2]
[346329836,1734895841297,-500.0,0.00019178,2]
[346329837,1734895841307,-2242.72,0.00019178,2]
[346329838,1734895841316,-2904.3,0.00019178,2]
[346329839,1734895841325,-500.0,0.00019178,2]
[346329840,1734895841334,-500.0,0.00019178,2]
[346329841,1734895841343,-770.68,0.00019178,2]
[346329842,1734895841353,-22104.72,0.00019178,2]
[346329843,1734895841363,-930.17,0.00019178,2]
[346329844,1734895841372,-534.0208846,0.00019178,2]
[346329845,1734895841381,-500.0,0.00019178,2]
[346329846,1734895841391,-500.0,0.00019178,2]
[346329847,1734895841400,-500.0,0.00019178,2]
[346329848,1734895841410,-818.72,0.00019178,2]
[346329849,1734895841418,-500.0,0.00019178,2]
[346329850,1734895841427,-500.0,0.00019178,2]
[346329851,1734895841437,-500.0,0.00019178,2]
[346329852,1734895841448,-937.58,0.00019178,2]
[346329853,1734895841458,-500.0,0.00019178,2]
[346329854,1734895841467,-500.0,0.00019178,2]
[346329855,1734895841477,-500.0,0.00019178,2]
[346329856,1734895841486,-500.0,0.00019178,2]
[346329857,1734895841496,-1173.36,0.00019178,2]
[346329858,1734895841506,-500.0,0.00019178,2]
[346329859,1734895841515,-678.07,0.00019178,2]
[346329860,1734895841525,-500.0,0.00019178,2]
[346329861,1734895841536,-500.0,0.00019178,2]
[346329862,1734895841545,-500.0,0.00019178,2]
[346329863,1734895841554,-616.19,0.00019178,2]
[346329864,1734895841563,-564.45,0.00019178,2]
[346329865,1734895841572,-500.0,0.00019178,2]
[346329866,1734895841582,-1380.65,0.00019178,2]
[346329867,1734895841591,-1149.62,0.00019178,2]
[346329868,1734895841601,-500.0,0.00019178,2]
[346329869,1734895841610,-500.0,0.00019178,2]
[346329870,1734895841619,-1325.76,0.00019178,2]
[346329871,1734895841630,-657.87,0.00019178,2]
[346329872,1734895841639,-500.0,0.00019178,2]
[346329873,1734895841648,-500.0,0.00019178,2]
[346329874,1734895841658,-3795.27,0.00019178,2]
[346329875,1734895841668,-785.89,0.00019178,2]
[346329876,1734895841677,-3678.02,0.00019178,2]
[346329877,1734895841686,-500.0,0.00019178,2]
[346329878,1734895841696,-500.0,0.00019178,2]
[346329879,1734895841705,-500.0,0.00019178,2]
[346329880,1734895841715,-500.0,0.00019178,2]
[346329881,1734895841727,-880.89,0.00019178,2]
[346329882,1734895841736,-520.62,0.00019178,2]
[346329883,1734895841747,-500.0,0.00019178,2]
[346329884,1734895841757,-43219.44,0.00019178,2]
[346329885,1734895841766,-500.0,0.00019178,2]
[346329886,1734895841776,-500.0,0.00019178,2]
[346329887,1734895841786,-2452.26,0.00019178,2]
[346329888,1734895841795,-290.410706,0.00019178,2]
[346329889,1734895841805,-500.0,0.00019178,2]
[346329890,1734895841815,-612.66,0.00019178,2]
[346329891,1734895841824,-161.935179,0.00019178,2]
[346329892,1734895841834,-500.0,0.00019178,2]
[346329893,1734895841843,-697.41,0.00019178,2]
[346329894,1734895841852,-500.0,0.00019178,2]
[346329895,1734895841861,-2183.5,0.00019178,2]
[346329896,1734895841871,-1244.16,0.00019178,2]
[346329897,1734895841880,-500.0,0.00019178,2]
[346329898,1734895841890,-12543.27,0.00019178,2]
[346329899,1734895841899,-500.0,0.00019178,2]
[346329900,1734895841909,-1262.91,0.00019178,2]
[346329901,1734895841919,-4184.78,0.00019178,2]
[346329902,1734895841928,-1290.74,0.00019178,2]
[346329903,1734895841937,-500.0,0.00019178,2]
[346329904,1734895841946,-231.82845851,0.00019178,2]
[346329905,1734895841955,-1771.12,0.00019178,2]
[346329906,1734895841965,-500.0,0.00019178,2]
[346329907,1734895841974,-733.38,0.00019178,2]
[346329908,1734895841983,-500.0,0.00019178,2]
[346329909,1734895841993,-500.0,0.00019178,2]
[346329910,1734895842002,-690.3,0.00019178,2]
[346329911,1734895842011,-1447.2,0.00019178,2]
[346329912,1734895842021,-500.0,0.00019178,2]
[346329913,1734895842031,-500.0,0.00019178,2]
[346329914,1734895842040,-885.97,0.00019178,2]
[346329915,1734895842049,-1849.78,0.00019178,2]
[346329916,1734895842059,-10545.47,0.00019178,2]
[346329917,1734895842068,-500.0,0.00019178,2]
[346329918,1734895842078,-8178.3,0.00019178,2]
[346329919,1734895842088,-3160.82,0.00019178,2]
[346329920,1734895842097,-3348.55,0.00019178,2]
[346329921,1734895842107,-500.0,0.00019178,2]
[346329922,1734895842116,-500.0,0.00019178,2]
[346329923,1734895842126,-500.0,0.00019178,2]
[346329924,1734895842136,-500.0,0.00019178,2]
[346329925,1734895842146,-1168.59,0.00019178,2]
[346329926,1734895842155,-4977.51,0.00019178,2]
[346329927,1734895842164,-500.0,0.00019178,2]
[346329928,1734895842173,-500.0,0.00019178,2]
[346329929,1734895842182,-500.0,0.00019178,2]
[346329930,1734895842191,-500.0,0.00019178,2]
[346329931,1734895842200,-905.43,0.00019178,2]
[346329932,1734895842209,-500.0,0.00019178,2]
[346329933,1734895842218,-500.0,0.00019178,2]
[346329934,1734895842228,-209.84762305,0.00019178,2]
[346329935,1734895842240,-500.0,0.00019178,2]
[346329936,1734895842250,-1797.49,0.00019178,2]
[346329937,1734895842261,-3349.93,0.00019178,2]
[346329938,1734895842271,-1217.37,0.00019178,2]
[346329939,1734895842281,-290.410702,0.00019178,2]
[346329941,1734895842290,-500.0,0.00019178,2]
[346329943,1734895842299,-500.0,0.00019178,2]
[346329944,1734895842308,-500.0,0.00019178,2]
[346329945,1734895842317,-5604.39,0.00019178,2]
[346329946,1734895842327,-500.0,0.00019178,2]
[346329947,1734895842335,-2093.23,0.00019178,2]
[346329948,1734895842344,-531.93,0.00019178,2]
[346329949,1734895842354,-161.786947,0.00019178,2]
[346329950,1734895842362,-500.0,0.00019178,2]
[346329952,1734895842371,-4065.4,0.00019178,2]
[346329953,1734895842381,-563.9,0.00019178,2]
[346329955,1734895842390,-500.0,0.00019178,2]
[346329958,1734895842399,-500.0,0.00019178,2]
[346329961,1734895842409,-642.59,0.00019178,2]
[346329964,1734895842418,-674.88,0.00019178,2]
[346329967,1734895842428,-500.0,0.00019178,2]
[346329968,1734895842437,-500.0,0.00019178,2]
[346329969,1734895842450,-1667.4,0.00019178,2]
[346329970,1734895842459,-1591.46,0.00019178,2]
[346329971,1734895842469,-500.0,0.00019178,2]
[346329972,1734895842485,-500.0,0.00019178,2]
[346329973,1734895842500,-500.0,0.00019178,2]
[346329974,1734895842509,-500.0,0.00019178,2]
[346329975,1734895842521,-500.0,0.00019178,2]
[346329976,1734895842531,-7417.88,0.00019178,2]
[346329977,1734895842541,-197.57,0.00019178,2]
[346329978,1734895842550,-500.0,0.00019178,2]
[346329979,1734895842560,-897.8,0.00019178,2]
[346329980,1734895842569,-500.0,0.00019178,2]
[346329981,1734895842579,-500.0,0.00019178,2]
[346329982,1734895842588,-3011.5,0.00019178,2]
[346329983,1734895842598,-500.0,0.00019178,2]
[346329984,1734895842607,-500.0,0.00019178,2]
[346329985,1734895842617,-500.0,0.00019178,2]
[346329986,1734895842626,-500.0,0.00019178,2]
[346329987,1734895842635,-500.0,0.00019178,2]
[346329988,1734895842644,-201.98,0.00019265,2]
[346329989,1734895842654,-161.07946134,0.00019271,2]
[346329990,1734895842663,-1287.008,0.00019282,2]
[346329991,1734895842672,-2010.0,0.00019282,2]
[346329992,1734895842682,-151.0,0.00019282,2]
[346329993,1734895842691,-150.0,0.00019282,2]
[346329994,1734895842702,-3886.0,0.00019282,2]
[346329995,1734895842712,-150.99,0.00019339,2]
[346329996,1734895842721,-199.12582288,0.00019352,2]
[346329997,1734895842731,-151.03,0.00019417,2]
[346329998,1734895842740,-150.0,0.00019417,2]
[346329999,1734895842750,-150.0,0.00019417,2]
[346330000,1734895842759,-152.91,0.00019417,2]
[346330001,1734895842769,-436.28,0.00019417,2]
[346330002,1734895842778,-365.13,0.00019417,2]
[346330003,1734895842787,-150.0,0.00019417,2]
[346330004,1734895842797,-150.0,0.00019417,2]
[346330005,1734895842806,-436.28,0.00019417,2]
[346330006,1734895842815,-150.0,0.00019417,2]
[346330007,1734895842825,-150.0,0.00019417,2]
[346330008,1734895842834,-365.13,0.00019417,2]
[346330009,1734895842844,-365.13,0.00019417,2]
[346330010,1734895842853,-150.0,0.00019417,2]
[346330011,1734895842862,-150.0,0.00019417,2]
[346330012,1734895842872,-436.28,0.00019417,2]
[346330013,1734895842881,-150.0,0.00019417,2]
[346330014,1734895842890,-150.0,0.00019417,2]
[346330015,1734895842900,-365.13,0.00019417,2]
[346330016,1734895842909,-150.0,0.00019417,2]
[346330017,1734895842919,-436.28,0.00019417,2]
[346330018,1734895842928,-200.0,0.00019444,2]
[346330019,1734895842937,-200.0,0.00019447,2]
[346330020,1734895842947,-215.63609586,0.00019447,2]
[346330021,1734895842960,-13681.38849306,0.00019448,2]
[346330022,1734895842969,-1742.46339135,0.00019448,2]
[346330023,1734895842978,-1742.46339135,0.0001945,2]
[346330024,1734895842987,-1173.36,0.00019451,2]
[346330025,1734895842996,-381.045087,0.00019452,2]
[346330026,1734895843005,-1159.52804,0.00019452,2]
[346330027,1734895843015,-500.0,0.00019452,2]
[346330028,1734895843024,-500.0,0.00019452,2]
[346330029,1734895843034,-500.0,0.00019452,2]
[346330030,1734895843043,-500.0,0.00019452,2]
[346330031,1734895843052,-640.26,0.00019452,2]
[346330032,1734895843062,-500.0,0.00019452,2]
[346330033,1734895843072,-500.0,0.00019452,2]
[346330034,1734895843081,-500.0,0.00019452,2]
[346330035,1734895843091,-500.0,0.00019452,2]
[346330036,1734895843100,-500.0,0.00019452,2]
[346330037,1734895843111,-500.0,0.00019452,2]
[346330038,1734895843120,-500.0,0.00019452,2]
[346330039,1734895843130,-517.32,0.00019452,2]
[346330040,1734895843140,-500.0,0.00019452,2]
[346330041,1734895843150,-500.0,0.00019452,2]
[346330042,1734895843160,-622.96767956,0.00019452,2]
[346330043,1734895843170,-500.0,0.00019452,2]
[346330044,1734895843180,-504.74,0.00019452,2]
[346330045,1734895843190,-500.0,0.00019452,2]
[346330046,1734895843200,-500.0,0.00019452,2]
[346330047,1734895843210,-496.68589236,0.00019452,2]
[346330048,1734895843220,-500.0,0.00019452,2]
[346330049,1734895843230,-500.0,0.00019452,2]
[346330050,1734895843240,-500.0,0.00019452,2]
[346330051,1734895843250,-500.0,0.00019452,2]
[346330052,1734895843260,-500.0,0.00019452,2]
[346330053,1734895843270,-500.0,0.00019452,2]
[346330054,1734895843280,-500.0,0.00019452,2]
[346330055,1734895843289,-500.0,0.00019452,2]
[346330056,1734895843298,-500.0,0.00019452,2]
[346330057,1734895843308,-648.2,0.00019452,2]
[346330058,1734895843318,-500.0,0.00019452,2]
[346330059,1734895843327,-500.0,0.00019452,2]
[346330060,1734895843337,-500.0,0.00019452,2]
[346330061,1734895843346,-500.0,0.00019452,2]
[346330062,1734895843356,-182.4,0.00019452,2]
[346330063,1734895843366,-500.0,0.00019452,2]
[346330064,1734895843376,-158.39,0.00019452,2]
[346330065,1734895843386,-500.0,0.00019452,2]
[346330066,1734895843396,-500.0,0.00019452,2]
[346330067,1734895843406,-500.0,0.00019452,2]
[346330068,1734895843415,-500.0,0.00019452,2]
[346330069,1734895843425,-500.0,0.00019452,2]
[346330070,1734895843435,-507.80887728,0.00019452,2]
[346330071,1734895843447,-500.0,0.00019452,2]
[346330072,1734895843461,-500.0,0.00019452,2]
[346330073,1734895843474,-500.0,0.00019452,2]
[346330074,1734895843484,-500.0,0.00019452,2]
[346330075,1734895843494,-500.0,0.00019452,2]
[346330076,1734895843504,-500.0,0.00019452,2]
[346330077,1734895843513,-500.0,0.00019452,2]
[346330078,1734895843523,-500.0,0.00019452,2]
[346330079,1734895843533,-500.0,0.00019452,2]
[346330080,1734895843543,-500.0,0.00019452,2]
[346330081,1734895843552,-500.0,0.00019452,2]
[346330082,1734895843562,-500.0,0.00019452,2]
[346330083,1734895843571,-500.0,0.00019452,2]
[346330084,1734895843581,-500.0,0.00019452,2]
[346330085,1734895843591,-500.0,0.00019452,2]
[346330086,1734895843601,-500.0,0.00019452,2]
[346330087,1734895843612,-500.0,0.00019452,2]
[346330088,1734895843624,-500.0,0.00019452,2]
[346330089,1734895843638,-500.0,0.00019452,2]
[346330090,1734895843648,-500.0,0.00019452,2]
[346330091,1734895843658,-500.0,0.00019452,2]
[346330092,1734895843668,-500.0,0.00019452,2]